lending/lending_fUSD_20240112
["ID","MTS","AMOUNT","RATE_DAILY","PERIOD"]
[311377089,1705069926094,-2388.38,0.00026965,2]
[311377090,1705069926104,-1809.41,0.00026965,2]
[311377091,1705069926114,-500.0,0.00026966,2]
[311377092,1705069926123,-502.36,0.00026966,2]
[311377093,1705069926133,-516.86,0.00026966,2]
[311377094,1705069926143,-612.81,0.00026966,2]
[311377095,1705069926154,-500.0,0.00026966,2]
[311377096,1705069926163,-513.4,0.00026966,2]
[311377097,1705069926172,-500.0,0.00026966,2]
[311377098,1705069926181,-500.0,0.00026966,2]
[311377099,1705069926191,-504.92,0.00026966,2]
[311377100,1705069926200,-500.0,0.00026966,2]
[311377101,1705069926210,-500.0,0.00026966,2]
[311377102,1705069926219,-500.0,0.00026966,2]
[311377103,1705069926228,-500.0,0.00026966,2]
[311377104,1705069926238,-500.0,0.00026966,2]
[311377105,1705069926248,-605.75,0.00026966,2]
[311377106,1705069926257,-500.0,0.00026966,2]
[311377107,1705069926267,-500.0,0.00026966,2]
[311377108,1705069926276,-539.29,0.00026966,2]
[311377109,1705069926291,-585.54,0.00026966,2]
[311377110,1705069926300,-348.0,0.00026966,2]
[311377111,1705069926310,-500.25,0.00026966,2]
[311377112,1705069926320,-667.11,0.00026966,2]
[311377113,1705069926330,-503.41,0.00026966,2]
[311377114,1705069926340,-510.64,0.00026966,2]
[311377115,1705069926350,-502.72,0.00026966,2]
[311377116,1705069926360,-547.84,0.00026966,2]
[311377117,1705069926370,-500.0,0.00026966,2]
[311377118,1705069926379,-500.0,0.00026966,2]
[311377119,1705069926389,-166.73,0.00026966,2]
[311377120,1705069926398,-500.0,0.00026966,2]
[311377121,1705069926408,-500.0,0.00026966,2]
[311377122,1705069926418,-500.0,0.00026966,2]
[311377123,1705069926427,-500.0,0.00026966,2]
[311377124,1705069926437,-759.5,0.00026966,2]
[311377125,1705069926447,-594.48,0.00026966,2]
[311377126,1705069926457,-500.0,0.00026966,2]
[311377127,1705069926467,-526.9,0.00026966,2]
[311377128,1705069926476,-500.0,0.00026966,2]
[311377129,1705069926486,-828.68,0.00026966,2]
[311377130,1705069926495,-500.0,0.00026966,2]
[311377131,1705069926505,-500.0,0.00026966,2]
[311377132,1705069926514,-527.53,0.00026966,2]
[311377133,1705069926524,-1088.6,0.00026966,2]
[311377134,1705069926538,-1291.94,0.00026966,2]
[311377135,1705069926548,-500.0,0.00026966,2]
[311377136,1705069926558,-810.7,0.00026966,2]
[311377137,1705069926568,-4607.32,0.00026966,2]
[311377138,1705069926579,-504.06,0.00026966,2]
[311377139,1705069926588,-500.0,0.00026966,2]
[311377140,1705069926599,-512.6,0.00026966,2]
[311377141,1705069926609,-500.0,0.00026966,2]
[311377142,1705069926618,-2315.41,0.00026966,2]
[311377143,1705069926628,-500.0,0.00026966,2]
[311377144,1705069926638,-1074.73,0.00026966,2]
[311377145,1705069926648,-1389.91,0.00026966,2]
[311377146,1705069926657,-500.0,0.00026966,2]
[311377147,1705069926667,-845.05,0.00026966,2]
[311377148,1705069926678,-888.54,0.00026966,2]
[311377149,1705069926688,-610.1,0.00026966,2]
[311377150,1705069926697,-1741.88,0.00026966,2]
[311377151,1705069926707,-1065.09,0.00026966,2]
[311377152,1705069926718,-355.66,0.00026966,2]
[311377153,1705069926727,-500.0,0.00026966,2]
[311377154,1705069926738,-547.61,0.00026966,2]
[311377155,1705069926748,-866.87,0.00026966,2]
[311377156,1705069926758,-500.0,0.00026966,2]
[311377157,1705069926768,-500.0,0.00026966,2]
[311377158,1705069926778,-1887.65,0.00026966,2]
[311377159,1705069926792,-242.08,0.00026966,2]
[311377160,1705069926801,-679.52,0.00026966,2]
[311377161,1705069926810,-978.52,0.00026966,2]
[311377162,1705069926820,-523.52,0.00026966,2]
[311377163,1705069926831,-538.5,0.00026966,2]
[311377164,1705069926843,-552.31,0.00026966,2]
[311377165,1705069926853,-1607.05,0.00026966,2]
[311377166,1705069926863,-625.78,0.00026966,2]
[311377167,1705069926874,-1162.04,0.00026966,2]
[311377168,1705069926884,-3925.57,0.00026966,2]
[311377169,1705069926894,-6529.19,0.00026966,2]
[311377170,1705069926904,-1245.87,0.00026966,2]
[311377171,1705069926913,-500.0,0.00026967,2]
[311377172,1705069926923,-500.0,0.00026967,2]
[311377173,1705069926932,-517.22,0.00026967,2]
[311377174,1705069926941,-500.0,0.00026967,2]
[311377175,1705069926951,-500.0,0.00026967,2]
[311377176,1705069926961,-502.5,0.00026967,2]
[311377177,1705069926971,-500.0,0.00026967,2]
[311377178,1705069926981,-702.1,0.00026967,2]
[311377179,1705069926991,-500.0,0.00026967,2]
[311377180,1705069927001,-544.39,0.00026967,2]
[311377181,1705069927011,-672.68,0.00026967,2]
[311377182,1705069927021,-605.18,0.00026967,2]
[311377183,1705069927037,-729.54,0.00026967,2]
[311377184,1705069927047,-500.0,0.00026967,2]
[311377185,1705069927057,-566.81,0.00026967,2]
[311377186,1705069927067,-500.0,0.00026967,2]
[311377187,1705069927078,-184.46,0.00026967,2]
[311377188,1705069927089,-668.25,0.00026967,2]
[311377189,1705069927101,-695.69,0.00026967,2]
[311377190,1705069927121,-500.0,0.00026967,2]
[311377191,1705069927133,-500.84,0.00026967,2]
[311377192,1705069927144,-569.65,0.00026967,2]
[311377193,1705069927153,-693.65,0.00026967,2]
[311377194,1705069927163,-500.0,0.00026967,2]
[311377195,1705069927172,-738.92,0.00026967,2]
[311377196,1705069927182,-576.07046121,0.00026967,2]
[311377197,1705069927192,-818.71,0.00026967,2]
[311377198,1705069927202,-1260.63,0.00026967,2]
[311377199,1705069927211,-500.0,0.00026967,2]
[311377200,1705069927220,-997.12,0.00026967,2]
[311377201,1705069927230,-500.0,0.00026967,2]
[311377202,1705069927241,-791.08,0.00026967,2]
[311377203,1705069927250,-500.0,0.00026967,2]
[311377204,1705069927261,-583.49,0.00026967,2]
[311377205,1705069927270,-764.86,0.00026967,2]
[311377206,1705069927283,-278.23,0.00026967,2]
[311377207,1705069927295,-350.37,0.00026967,2]
[311377208,1705069927305,-500.0,0.00026967,2]
[311377209,1705069927315,-666.51,0.00026967,2]
[311377210,1705069927325,-500.0,0.00026967,2]
[311377211,1705069927334,-538.35,0.00026967,2]
[311377212,1705069927344,-778.72,0.00026967,2]
[311377213,1705069927354,-500.0,0.00026967,2]
[311377214,1705069927364,-500.0,0.00026967,2]
[311377215,1705069927374,-500.0,0.00026967,2]
[311377216,1705069927383,-363.01,0.00026967,2]
[311377217,1705069927393,-500.0,0.00026967,2]
[311377218,1705069927404,-523.13,0.00026967,2]
[311377219,1705069927414,-500.0,0.00026967,2]
[311377220,1705069927423,-500.0,0.00026967,2]
[311377221,1705069927434,-1386.41,0.00026967,2]
[311377222,1705069927444,-913.03,0.00026967,2]
[311377223,1705069927455,-500.0,0.00026967,2]
[311377224,1705069927464,-632.3,0.00026967,2]
[311377225,1705069927474,-500.0,0.00026967,2]
[311377226,1705069927484,-507.75,0.00026967,2]
[311377227,1705069927494,-713.86,0.00026967,2]
[311377228,1705069927511,-500.0,0.00026967,2]
[311377229,1705069927528,-500.0,0.00026967,2]
[311377230,1705069927543,-565.93,0.00026967,2]
[311377231,1705069927552,-528.24,0.00026967,2]
[311377232,1705069927562,-2064.59,0.00026967,2]
[311377233,1705069927572,-1012.05,0.00026967,2]
[311377234,1705069927582,-2200.73,0.00026967,2]
[311377235,1705069927592,-536.82981305,0.00026967,2]
[311377236,1705069927605,-500.0,0.00026967,2]
[311377237,1705069927615,-554.14,0.00026967,2]
[311377238,1705069927625,-574.28,0.00026967,2]
[311377239,1705069927634,-500.0,0.00026967,2]
[311377240,1705069927644,-610.82,0.00026967,2]
[311377241,1705069927654,-679.81,0.00026967,5]
[311377242,1705069927663,-555.49,0.00026967,2]
[311377243,1705069927673,-500.0,0.00026967,2]
[311377244,1705069927683,-560.5,0.00026967,2]
[311377245,1705069927692,-1995.08,0.00026967,2]
[311377246,1705069927702,-2984.21,0.00026967,2]
[311377247,1705069927712,-1910.97,0.00026967,2]
[311377248,1705069927722,-377.99,0.00026967,2]
[311377249,1705069927732,-500.0,0.00026967,2]
[311377250,1705069927743,-646.17,0.00026967,2]
[311377251,1705069927753,-316.64,0.00026967,2]
[311377252,1705069927763,-500.0,0.00026967,2]
[311377253,1705069927773,-1099.3,0.00026967,2]
[311377254,1705069927786,-531.38,0.00026967,2]
[311377255,1705069927795,-500.0,0.00026967,2]
[311377256,1705069927805,-832.14,0.00026967,2]
[311377257,1705069927815,-871.05,0.00026967,2]
[311377258,1705069927825,-363.26,0.00026967,2]
[311377259,1705069927835,-963.48,0.00026967,2]
[311377260,1705069927845,-500.0,0.00026967,2]
[311377261,1705069927854,-674.09,0.00026967,2]
[311377262,1705069927864,-500.0,0.00026967,2]
[311377263,1705069927873,-500.0,0.00026967,2]
[311377264,1705069927883,-673.94,0.00026967,2]
[311377265,1705069927893,-1270.12,0.00026967,2]
[311377266,1705069927904,-536.49,0.00026967,2]
[311377267,1705069927914,-694.97,0.00026967,2]
[311377268,1705069927925,-500.0,0.00026967,2]
[311377269,1705069927934,-248.5,0.00026967,2]
[311377270,1705069927944,-511.44,0.00026967,2]
[311377271,1705069927954,-500.0,0.00026967,2]
[311377272,1705069927964,-500.0,0.00026967,2]
[311377273,1705069927973,-521.98,0.00026967,2]
[311377274,1705069927983,-592.85,0.00026967,2]
[311377275,1705069927992,-500.0,0.00026967,2]
[311377276,1705069928001,-511.22,0.00026967,2]
[311377277,1705069928010,-1245.3,0.00026967,2]
[311377278,1705069928020,-757.48,0.00026967,2]
[311377279,1705069928032,-715.96,0.00026967,2]
[311377280,1705069928042,-150.01,0.00026969,2]
[311377281,1705069928052,-3292.32224499,0.00026969,2]
[311377282,1705069928061,-500.0,0.00026969,2]
[311377283,1705069928070,-500.0,0.00026969,2]
[311377284,1705069928080,-502.42,0.00026969,2]
[311377285,1705069928089,-881.21,0.00026969,2]
[311377286,1705069928098,-535.59,0.00026969,2]
[311377287,1705069928108,-514.86,0.00026969,2]
[311377288,1705069928117,-155.0,0.00027,2]
[311377289,1705069928126,-12283.43506918,0.00027,2]
[311377290,1705069928136,-688.44,0.00027014,2]
[311377291,1705069928145,-629.62,0.00027108,2]
[311377292,1705069928155,-923.31,0.00027108,2]
[311377293,1705069928164,-537.36,0.00027108,2]
[311377294,1705069928174,-760.69,0.00027108,2]
[311377295,1705069928184,-500.0,0.00027108,2]
[311377296,1705069928194,-293.0,0.00027232,2]
[311377297,1705069928203,-760.98,0.00027238,2]
[311377298,1705069928212,-1576.67,0.00027238,2]
[311377299,1705069928222,-1676.63,0.00027238,2]
[311377300,1705069928232,-1776.52,0.00027238,2]
[311377301,1705069928242,-1028.33,0.00027238,2]
[311377302,1705069928252,-903.76,0.00027238,2]
[311377303,1705069928262,-823.09,0.00027238,2]
[311377304,1705069928272,-1992.9,0.00027238,2]
[311377305,1705069928283,-500.0,0.00027238,2]
[311377306,1705069928293,-1088.57,0.00027238,2]
[311377307,1705069928303,-592.52,0.00027238,2]
[311377308,1705069928312,-1069.49,0.00027238,2]
[311377309,1705069928321,-11473.02,0.00027238,2]
[311377310,1705069928330,-1045.86,0.00027238,2]
[311377311,1705069928339,-500.0,0.00027238,2]
[311377312,1705069928349,-693.02,0.00027238,2]
[311377313,1705069928358,-1530.26,0.00027238,2]
[311377314,1705069928367,-500.0,0.00027238,2]
[311377315,1705069928376,-773.0,0.00027238,2]
[311377316,1705069928386,-1161.03,0.00027238,2]
[311377317,1705069928397,-596.64,0.00027238,2]
[311377318,1705069928406,-371.29,0.00027238,2]
[311377319,1705069928419,-3055.75,0.00027238,2]
[311377320,1705069928429,-996.78,0.00027239,2]
[311377321,1705069928439,-939.36,0.00027239,2]
[311377322,1705069928449,-535.32,0.00027239,2]
[311377323,1705069928458,-1978.54,0.00027239,2]
[311377324,1705069928468,-570.64,0.00027239,2]
[311377325,1705069928477,-10562.85,0.00027239,2]
[311377326,1705069928487,-6373.11,0.00027239,2]
[311377327,1705069928496,-749.0,0.00027239,2]
[311377328,1705069928506,-928.84,0.00027239,2]
[311377329,1705069928515,-536.68,0.00027239,2]
[311377330,1705069928525,-2087.57,0.00027239,2]
[311377331,1705069928536,-904.81,0.00027239,2]
[311377332,1705069928546,-889.19,0.00027239,2]
[311377333,1705069928556,-978.77,0.00027239,2]
[311377334,1705069928566,-712.93,0.00027239,2]
[311377335,1705069928575,-553.32,0.00027239,2]
[311377336,1705069928585,-5000.64,0.00027239,2]
[311377337,1705069928595,-1083.57,0.00027239,2]
[311377338,1705069928605,-1837.15,0.00027239,2]
[311377339,1705069928614,-1063.77,0.00027239,2]
[311377340,1705069928625,-4397.81,0.00027239,2]
[311377341,1705069928635,-1384.9,0.00027239,2]
[311377342,1705069928645,-1749.07,0.00027239,2]
[311377343,1705069928654,-8501.24,0.00027239,2]
[311377344,1705069928664,-550.62,0.00027239,2]
[311377345,1705069928673,-292.39,0.00027239,2]
[311377346,1705069928682,-563.63,0.00027239,2]
[311377347,1705069928692,-2396.88,0.00027239,2]
[311377348,1705069928701,-947.32,0.00027239,2]
[311377349,1705069928710,-3427.97,0.00027239,2]
[311377350,1705069928720,-3063.47,0.00027239,2]
[311377351,1705069928729,-2388.38,0.00027239,2]
[311377352,1705069928739,-1809.41,0.00027239,2]
[311377353,1705069928748,-500.0,0.0002724,2]
[311377354,1705069928758,-502.36,0.0002724,2]
[311377355,1705069928768,-516.86,0.0002724,2]
[311377356,1705069928777,-612.81,0.0002724,2]
[311377357,1705069928790,-500.0,0.0002724,2]
[311377358,1705069928800,-513.4,0.0002724,2]
[311377359,1705069928810,-501.12,0.0002724,2]
[311377360,1705069928819,-500.0,0.0002724,2]
[311377361,1705069928829,-504.92,0.0002724,2]
[311377362,1705069928839,-500.0,0.0002724,2]
[311377363,1705069928848,-500.0,0.0002724,2]
[311377364,1705069928858,-377.8514272,0.0002724,2]
[311377365,1705069928868,-244.56216607,0.0002724,2]
[311377366,1705069928877,-500.0,0.0002724,2]
[311377367,1705069928887,-605.75,0.0002724,2]
[311377368,1705069928896,-500.0,0.0002724,2]
[311377369,1705069928906,-500.0,0.0002724,2]
[311377370,1705069928916,-539.29,0.0002724,2]
[311377371,1705069928926,-585.54,0.0002724,2]
[311377372,1705069928936,-500.25,0.0002724,2]
[311377373,1705069928946,-667.11,0.0002724,2]
[311377374,1705069928956,-503.41,0.0002724,2]
[311377375,1705069928966,-510.64,0.0002724,2]
[311377376,1705069928975,-502.72,0.0002724,2]
[311377377,1705069928985,-547.84,0.0002724,2]
[311377378,1705069928996,-500.0,0.0002724,2]
[311377379,1705069929005,-500.0,0.0002724,2]
[311377380,1705069929015,-166.73,0.0002724,2]
[311377381,1705069929025,-500.0,0.0002724,2]
[311377382,1705069929039,-500.0,0.0002724,2]
[311377383,1705069929049,-500.0,0.0002724,2]
[311377384,1705069929059,-500.0,0.0002724,2]
[311377385,1705069929070,-759.5,0.0002724,2]
[311377386,1705069929080,-594.48,0.0002724,2]
[311377387,1705069929090,-500.0,0.0002724,2]
[311377388,1705069929099,-526.9,0.0002724,2]
[311377389,1705069929108,-500.0,0.0002724,2]
[311377390,1705069929117,-828.68,0.0002724,2]
[311377391,1705069929127,-500.0,0.0002724,2]
[311377392,1705069929146,-500.0,0.0002724,2]
[311377393,1705069929157,-527.53,0.0002724,2]
[311377394,1705069929167,-1088.6,0.0002724,2]
[311377395,1705069929176,-1291.94,0.0002724,2]
[311377396,1705069929186,-500.0,0.0002724,2]
[311377397,1705069929195,-810.7,0.0002724,2]
[311377398,1705069929205,-4607.32,0.0002724,2]
[311377399,1705069929215,-504.06,0.0002724,2]
[311377400,1705069929225,-500.0,0.0002724,2]
[311377401,1705069929235,-512.6,0.0002724,2]
[311377402,1705069929246,-500.0,0.0002724,2]
[311377403,1705069929261,-2315.41,0.0002724,2]
[311377404,1705069929275,-153.68,0.0002724,2]
[311377405,1705069929286,-1074.73,0.0002724,2]
[311377406,1705069929295,-1389.91,0.0002724,2]
[311377407,1705069929305,-500.0,0.0002724,2]
[311377408,1705069929314,-845.05,0.0002724,2]
[311377409,1705069929325,-888.54,0.0002724,2]
[311377410,1705069929335,-1741.88,0.0002724,2]
[311377411,1705069929345,-1065.09,0.0002724,2]
[311377412,1705069929355,-268.12,0.0002724,2]
[311377413,1705069929365,-547.61,0.0002724,2]
[311377414,1705069929375,-866.87,0.0002724,2]
[311377415,1705069929385,-500.0,0.0002724,2]
[311377416,1705069929395,-500.0,0.0002724,2]
[311377417,1705069929405,-1887.65,0.0002724,2]
[311377418,1705069929414,-978.52,0.0002724,2]
[311377419,1705069929424,-679.52,0.0002724,2]
[311377420,1705069929434,-523.52,0.0002724,2]
[311377421,1705069929444,-538.5,0.0002724,2]
[311377422,1705069929454,-552.31,0.0002724,2]
[311377423,1705069929464,-1607.05,0.0002724,2]
[311377424,1705069929474,-625.78,0.0002724,2]
[311377425,1705069929485,-1162.04,0.0002724,2]
[311377426,1705069929495,-3925.57,0.0002724,2]
[311377427,1705069929505,-6529.19,0.0002724,2]
[311377428,1705069929515,-1245.87,0.0002724,2]
[311377429,1705069929525,-500.0,0.00027241,2]
[311377430,1705069929537,-216.8,0.00027241,2]
[311377431,1705069929546,-500.0,0.00027241,2]
[311377432,1705069929558,-500.0,0.00027241,2]
[311377433,1705069929567,-502.5,0.00027241,2]
[311377434,1705069929577,-500.0,0.00027241,2]
[311377435,1705069929588,-702.1,0.00027241,2]
[311377436,1705069929598,-500.0,0.00027241,2]
[311377437,1705069929610,-544.39,0.00027241,2]
[311377438,1705069929619,-672.68,0.00027241,2]
[311377439,1705069929629,-729.54,0.00027241,2]
[311377440,1705069929640,-409.44,0.00027241,2]
[311377441,1705069929650,-566.81,0.00027241,2]
[311377442,1705069929662,-500.0,0.00027241,2]
[311377443,1705069929672,-668.25,0.00027241,2]
[311377444,1705069929684,-695.69,0.00027241,2]
[311377445,1705069929694,-500.0,0.00027241,2]
[311377446,1705069929703,-500.84,0.00027241,2]
[311377447,1705069929713,-569.65,0.00027241,2]
[311377448,1705069929723,-693.65,0.00027241,2]
[311377449,1705069929733,-630.78,0.00027241,2]
[311377450,1705069929743,-738.92,0.00027241,2]
[311377451,1705069929754,-818.71,0.00027241,2]
[311377452,1705069929764,-1260.63,0.00027241,2]
[311377453,1705069929774,-500.0,0.00027241,2]
[311377454,1705069929789,-997.12,0.00027241,2]
[311377455,1705069929800,-500.0,0.00027241,2]
[311377456,1705069929810,-791.08,0.00027241,2]
[311377457,1705069929819,-428.18,0.00027241,2]
[311377458,1705069929830,-583.49,0.00027241,2]
[311377459,1705069929840,-764.86,0.00027241,2]
[311377460,1705069929851,-500.0,0.00027241,2]
[311377461,1705069929861,-666.51,0.00027241,2]
[311377462,1705069929871,-500.0,0.00027241,2]
[311377463,1705069929881,-538.35,0.00027241,2]
[311377464,1705069929891,-778.72,0.00027241,2]
[311377465,1705069929901,-500.0,0.00027241,2]
[311377466,1705069929911,-500.0,0.00027241,2]
[311377467,1705069929921,-500.0,0.00027241,2]
[311377468,1705069929931,-500.0,0.00027241,2]
[311377469,1705069929941,-523.13,0.00027241,2]
[311377470,1705069929951,-500.0,0.00027241,2]
[311377471,1705069929961,-429.1806345,0.00027241,2]
[311377472,1705069929971,-1386.41,0.00027241,2]
[311377473,1705069929982,-913.03,0.00027241,2]
[311377474,1705069929992,-500.0,0.00027241,2]
[311377475,1705069930002,-632.3,0.00027241,2]
[311377476,1705069930012,-451.08,0.00027241,2]
[311377477,1705069930022,-507.75,0.00027241,2]
[311377478,1705069930035,-713.86,0.00027241,2]
[311377479,1705069930045,-500.0,0.00027241,2]
[311377480,1705069930056,-500.0,0.00027241,2]
[311377481,1705069930066,-565.93,0.00027241,2]
[311377482,1705069930076,-528.24,0.00027241,2]
[311377483,1705069930086,-2064.59,0.00027241,2]
[311377484,1705069930096,-1012.05,0.00027241,2]
[311377485,1705069930105,-2200.73,0.00027241,2]
[311377486,1705069930115,-385.02889616,0.00027241,2]
[311377487,1705069930125,-554.14,0.00027241,2]
[311377488,1705069930137,-574.28,0.00027241,2]
[311377489,1705069930148,-229.45,0.00027241,2]
[311377490,1705069930158,-610.82,0.00027241,2]
[311377491,1705069930167,-679.81,0.00027241,5]
[311377492,1705069930177,-555.49,0.00027241,2]
[311377493,1705069930187,-500.0,0.00027241,2]
[311377494,1705069930197,-560.5,0.00027241,2]
[311377495,1705069930206,-1995.08,0.00027241,2]
[311377496,1705069930217,-2984.21,0.00027241,2]
[311377497,1705069930227,-1910.97,0.00027241,2]
[311377498,1705069930238,-500.0,0.00027241,2]
[311377499,1705069930247,-500.0,0.00027241,2]
[311377500,1705069930257,-1099.3,0.00027241,2]
[311377501,1705069930267,-500.0,0.00027241,2]
[311377502,1705069930277,-531.38,0.00027241,2]
[311377503,1705069930310,-832.14,0.00027241,2]
[311377504,1705069930327,-871.05,0.00027241,2]
[311377505,1705069930337,-963.48,0.00027241,2]
[311377506,1705069930347,-500.0,0.00027241,2]
[311377507,1705069930357,-674.09,0.00027241,2]
[311377508,1705069930367,-500.0,0.00027241,2]
[311377509,1705069930377,-439.05,0.00027241,2]
[311377510,1705069930387,-673.94,0.00027241,2]
[311377511,1705069930399,-1270.12,0.00027241,2]
[311377512,1705069930410,-536.49,0.00027241,2]
[311377513,1705069930421,-694.97,0.00027241,2]
[311377514,1705069930431,-500.0,0.00027241,2]
[311377515,1705069930441,-511.44,0.00027241,2]
[311377516,1705069930451,-159.06,0.00027241,2]
[311377517,1705069930461,-500.0,0.00027241,2]
[311377518,1705069930472,-521.98,0.00027241,2]
[311377519,1705069930481,-592.85,0.00027241,2]
[311377520,1705069930491,-500.0,0.00027241,2]
[311377521,1705069930501,-511.22,0.00027241,2]
[311377522,1705069930512,-1245.3,0.00027241,2]
[311377523,1705069930522,-757.48,0.00027241,2]
[311377524,1705069930533,-715.96,0.00027241,2]
[311377525,1705069930543,-500.0,0.00027243,2]
[311377526,1705069930553,-645.27,0.00027243,2]
[311377527,1705069930563,-502.42,0.00027243,2]
[311377528,1705069930572,-881.21,0.00027243,2]
[311377529,1705069930583,-535.59,0.00027243,2]
[311377530,1705069930594,-514.86,0.00027243,2]
[311377531,1705069930604,-150.0,0.00027269,2]
[311377532,1705069930614,-4540.888268,0.0002727,2]
[311377533,1705069930625,-389.44,0.00027305,2]
[311377534,1705069930634,-3643.869,0.0002733,2]
[311377535,1705069930644,-1355.0,0.0002733,2]
[311377536,1705069930655,-18404.07,0.0002733,2]
[311377537,1705069930665,-2270.0,0.0002733,2]
[311377538,1705069930675,-19678.0,0.0002733,2]
[311377539,1705069930685,-2901.0,0.0002733,2]
[311377540,1705069930695,-945.0,0.0002733,2]
[311377541,1705069930705,-835.0,0.0002733,2]
[311377542,1705069930715,-1028.0,0.0002733,2]
[311377543,1705069930726,-629.62,0.00027382,2]
[311377544,1705069930736,-923.31,0.00027382,2]
[311377545,1705069930747,-537.36,0.00027382,2]
[311377546,1705069930756,-760.69,0.00027382,2]
[311377547,1705069930767,-500.0,0.00027382,2]
[311377548,1705069930777,-753.07,0.00027397,2]
[311377549,1705069930790,-753.07,0.00027397,2]
[311377550,1705069930800,-753.07,0.00027397,2]
[311377551,1705069930809,-753.07,0.00027397,2]
[311377552,1705069930819,-753.07,0.00027397,2]
[311377553,1705069930828,-753.07,0.00027397,2]
[311377554,1705069930838,-753.07,0.00027397,2]
[311377555,1705069930848,-753.07,0.00027397,2]
[311377556,1705069930859,-753.07,0.00027397,2]
[311377557,1705069930868,-753.07,0.00027397,2]
[311377558,1705069930878,-753.07,0.00027397,2]
[311377559,1705069930888,-753.07,0.00027397,2]
[311377560,1705069930898,-753.07,0.00027397,2]
[311377561,1705069930908,-753.07,0.00027397,2]
[311377562,1705069930918,-753.07,0.00027397,2]
[311377563,1705069930928,-753.07,0.00027397,2]
[311377564,1705069930938,-753.07,0.00027397,2]
[311377565,1705069930947,-753.07,0.00027397,2]
[311377566,1705069930957,-500.0,0.00027397,2]
[311377567,1705069930967,-500.0,0.00027397,2]
[311377568,1705069930977,-500.0,0.00027397,2]
[311377569,1705069930987,-500.0,0.00027397,2]
[311377570,1705069930996,-500.0,0.00027397,2]
[311377571,1705069931006,-500.0,0.00027397,2]
[311377572,1705069931015,-500.0,0.00027397,2]
[311377573,1705069931025,-500.0,0.00027397,2]
[311377574,1705069931036,-500.0,0.00027397,2]
[311377575,1705069931046,-500.0,0.00027397,2]
[311377576,1705069931055,-500.0,0.00027397,2]
[311377577,1705069931066,-500.0,0.00027397,2]
[311377578,1705069931076,-500.0,0.00027397,2]
[311377579,1705069931086,-202.57575322,0.00027397,2]
[311377580,1705069931096,-310.40864092,0.00027397,2]
[311377581,1705069931106,-500.0,0.00027397,30]
[311377582,1705069931116,-500.0,0.00027397,30]
[311377583,1705069931126,-500.0,0.00027397,30]
[311377584,1705069931136,-500.0,0.00027397,30]
[311377585,1705069931146,-473.97392489,0.00027397,30]
[311377586,1705069931158,-500.0,0.00027397,2]
[311377587,1705069931169,-500.0,0.00027397,2]
[311377588,1705069931179,-576.63067369,0.00027397,2]